[Event "VIII Lorca Open-A 2019"]
[Site "Lorca"]
[Date "2019.12.28"]
[Round "5.8"]
[White "Sadzikowski, Daniel"]
[Black "Matta, Vinay Kumar"]
[Result "1-0"]
[ECO "E63"]
[WhiteElo "2504"]
[BlackElo "2300"]
[Annotator "ChessBase"]
[PlyCount "93"]
[EventDate "2019.12.26"]
[EventType "swiss"]
[EventCountry "ESP"]
[SourceTitle "playchess.com"]
[Source "ChessBase"]
[SourceQuality "1"]
[TimeControl "5400+30"]

1. d4 {[%emt 0:00:00]} Nf6 {[%emt 0:01:02]} 2. c4 {[%emt 0:00:00]} g6 {[%emt 0:00:03]} 3. Nf3 {[%emt 0:00:20]} Bg7 {[%emt 0:00:08]} 4. g3 {[%emt 0:00:06]} O-O {[%emt 0:00:04]} 5. Bg2 {[%emt 0:00:07]} Nc6 {[%emt 0:00:18]} 6. O-O {[%emt 0:00:35]} d6 {[%emt 0:00:06]} 7. Nc3 {[%emt 0:00:13]} a6 {[%emt 0:00:03]} 8. b3 {[%emt 0:01:34]} Rb8 {[%emt 0:00:27]} 9. d5 {[%emt 0:00:25]} Nxd5 {[%emt 0:02:39]} 10. cxd5 {[%emt 0:00:32]} Bxc3 {[%emt 0:00:12]} 11. Bh6 {[%emt 0:00:13]} Ne5 {[%emt 0:00:25]} 12. Bxf8 {[%emt 0:00:29]} Bxa1 {[%emt 0:02:12]} 13. Bxe7 {[%emt 0:00:05]} Qxe7 {[%emt 0:00:20]} 14. Qxa1 {[%emt 0:00:02]} Nxf3+ {[%emt 0:05:15]} 15. Bxf3 {[%emt 0:00:07]} Bd7 {[%emt 0:00:30]} 16. Rc1 {[%emt 0:00:07]} Rc8 {[%emt 0:00:55]} 17. Rc4 {[%emt 0:01:35]} c5 {[%emt 0:07:39]} 18. dxc6 {[%emt 0:00:12]} bxc6 {[%emt 0:00:53]} 19. Ra4 {[%emt 0:10:08]} c5 {[%emt 0:11:29]} 20. Rxa6 {[%emt 0:00:27]} Bb5 {[%emt 0:01:56]} 21. Rb6 {[%emt 0:00:20]} Bxe2 {[%emt 0:00:36]} 22. Bxe2 {[%emt 0:00:38]} Qxe2 {[%emt 0:00:06]} 23. Rxd6 {[%emt 0:00:05]} c4 {[%emt 0:00:35]} 24. bxc4 {[%emt 0:12:10]} Qxc4 {[%emt 0:00:15]} 25. a4 {[%emt 0:00:27]} Qb4 {[%emt 0:02:47]} 26. Rd1 {[%emt 0:14:26]} Qa5 {[%emt 0:02:32]} 27. Qd4 {[%emt 0:00:44]} Ra8 {[%emt 0:00:30]} 28. Rb1 {[%emt 0:03:08]} Rd8 {[%emt 0:07:56]} 29. Qe4 {[%emt 0:01:17]} Qc3 {[%emt 0:08:33]} 30. Kg2 {[%emt 0:02:02]} Kg7 {[%emt 0:04:35]} 31. h4 {[%emt 0:05:51]} h5 {[%emt 0:01:58]} 32. Re1 {[%emt 0:02:19]} Kg8 {[%emt 0:09:28]} 33. Re3 {[%emt 0:00:21]} Qa5 {[%emt 0:02:45]} 34. Qc6 {[%emt 0:02:32]} Rd4 {[%emt 0:06:54]} 35. Re4 {[%emt 0:05:15]} Rxe4 {[%emt 0:03:12]} 36. Qxe4 {[%emt 0:00:04]} Kf8 {[%emt 0:02:15]} 37. Qc6 {[%emt 0:02:44]} Kg7 {[%emt 0:00:16]} 38. Qb5 {[%emt 0:00:24]} Qa8+ {[%emt 0:00:02]} 39. Kg1 {[%emt 0:00:12]} Qe4 {[%emt 0:00:32]} 40. a5 {[%emt 0:00:34]} Qe1+ {[%emt 0:00:08]} 41. Kg2 {[%emt 0:00:02]} Qe4+ {[%emt 0:00:33]} 42. Kh2 {[%emt 0:00:09]} Qd4 {[%emt 0:01:00]} 43. Qb6 {[%emt 0:00:11]} Qe4 {[%emt 0:00:44]} 44. a6 {[%emt 0:00:22]} Qe2 {[%emt 0:01:09]} 45. a7 {[%emt 0:00:51]} Qa2 {[%emt 0:01:33]} 46. Kg1 {[%emt 0:00:10]} Qd5 {[%emt 0:02:08]} 47. Qb8 {[%emt 0:00:46]} 1-0

[Event "VIII Lorca Open-A 2019"]
[Site "Lorca"]
[Date "2019.12.28"]
[Round "5.9"]
[White "Pogorelov, Ruslan"]
[Black "Harutyunian, Tigran K."]
[Result "1/2-1/2"]
[ECO "E61"]
[WhiteElo "2377"]
[BlackElo "2540"]
[Annotator "ChessBase"]
[PlyCount "141"]
[EventDate "2019.12.26"]
[EventType "swiss"]
[EventCountry "ESP"]
[SourceTitle "playchess.com"]
[Source "ChessBase"]
[SourceQuality "1"]
[TimeControl "5400+30"]

1. Nf3 {[%emt 0:07:45]} Nf6 {[%emt 0:00:00]} 2. c4 {[%emt 0:00:08]} d6 {[%emt 0:00:15]} 3. d4 {[%emt 0:00:14]} g6 {[%emt 0:00:12]} 4. Nc3 {[%emt 0:00:55]} Bf5 {[%emt 0:00:14]} 5. Qb3 {[%emt 0:01:46]} b6 {[%emt 0:00:24]} 6. e3 {[%emt 0:06:58]} Bg7 {[%emt 0:01:17]} 7. Be2 {[%emt 0:00:16]} O-O {[%emt 0:01:54]} 8. O-O {[%emt 0:00:09]} Nc6 {[%emt 0:03:29]} 9. Rd1 {[%emt 0:06:08]} Qc8 {[%emt 0:05:52]} 10. Bd2 {[%emt 0:08:31]} Re8 {[%emt 0:01:36]} 11. Be1 {[%emt 0:00:58]} e5 {[%emt 0:03:21]} 12. dxe5 {[%emt 0:02:55]} dxe5 {[%emt 0:00:06]} 13. Qa4 {[%emt 0:06:22]} Qb7 {[%emt 0:05:05]} 14. Rac1 {[%emt 0:06:18]} Nd7 {[%emt 0:01:33]} 15. Nd5 {[%emt 0:48:07]} Nc5 {[%emt 0:01:20]} 16. Qa3 {[%emt 0:00:00]} a5 {[%emt 0:00:07]} 17. b3 {[%emt 0:00:00]} Nb4 {[%emt 0:07:56]} 18. Nxb4 {[%emt 0:01:30]} axb4 19. Qb2 Bd3 20. Qd2 {[%emt 0:00:00]} Red8 {[%emt 0:01:09]} 21. Bxd3 Nxd3 {[%emt 0:05:08]} 22. Rc2 {[%emt 0:00:59]} c5 {[%emt 0:02:56]} 23. Qe2 {[%emt 0:00:33]} e4 {[%emt 0:00:06]} 24. Ng5 {[%emt 0:00:47]} h6 {[%emt 0:01:53]} 25. Nh3 {[%emt 0:00:10]} g5 {[%emt 0:00:04]} 26. f3 {[%emt 0:00:49]} exf3 {[%emt 0:00:55]} 27. Qxf3 {[%emt 0:00:41]} Qxf3 {[%emt 0:04:20]} 28. gxf3 {[%emt 0:00:03]} Nxe1 {[%emt 0:00:54]} 29. Rxe1 {[%emt 0:00:04]} Bc3 {[%emt 0:00:08]} 30. Ree2 {[%emt 0:00:26]} Rd1+ {[%emt 0:52:46]} 31. Kg2 f5 {[%emt 0:00:00]} 32. f4 {[%emt 0:01:24]} g4 {[%emt 0:00:00]} 33. Nf2 {[%emt 0:00:03]} Ra1 {[%emt 0:00:00]} 34. e4 {[%emt 0:00:13]} h5 {[%emt 0:00:00]} 35. exf5 {[%emt 0:00:07]} Kf7 {[%emt 0:00:00]} 36. h3 {[%emt 0:02:41]} gxh3+ {[%emt 0:00:00]} 37. Kxh3 {[%emt 0:00:00]} Kf6 {[%emt 0:00:00]} 38. Ne4+ {[%emt 0:00:00]} Kxf5 {[%emt 0:00:00]} 39. Nxc3 {[%emt 0:00:00]} bxc3 {[%emt 0:04:30]} 40. Rxc3 {[%emt 0:00:00]} R8xa2 {[%emt 0:00:00]} 41. Rxa2 {[%emt 0:00:32]} Rxa2 {[%emt 0:00:00]} 42. Re3 {[%emt 0:00:50]} Rb2 {[%emt 0:00:00]} 43. Kg3 {[%emt 0:00:25]} h4+ {[%emt 0:00:00]} 44. Kxh4 {[%emt 0:00:47]} Kxf4 {[%emt 0:00:00]} 45. Rh3 {[%emt 0:00:25]} Rg2 {[%emt 0:00:00]} 46. Rh1 {[%emt 0:00:31]} Rg3 {[%emt 0:03:30]} 47. Kh5 {[%emt 0:00:50]} Ke4 {[%emt 0:00:00]} 48. Rb1 {[%emt 0:01:05]} Re3 {[%emt 0:00:00]} 49. Kg4 Kd3 {[%emt 0:01:30]} 50. Kf4 {[%emt 0:01:35]} Kc2 {[%emt 0:00:00]} 51. Rh1 {[%emt 0:00:00]} Rxb3 {[%emt 0:00:00]} 52. Ke5 {[%emt 0:00:04]} Kc3 {[%emt 0:00:00]} 53. Kd5 Kb4 {[%emt 0:02:00]} 54. Rc1 {[%emt 0:01:56]} Rd3+ {[%emt 0:00:00]} 55. Kc6 {[%emt 0:00:00]} Rc3 {[%emt 0:00:00]} 56. Rb1+ {[%emt 0:00:00]} Kxc4 {[%emt 0:00:00]} 57. Kxb6 {[%emt 0:00:00]} Rc2 {[%emt 0:00:00]} 58. Kc6 {[%emt 0:00:02]} Rc3 {[%emt 0:00:00]} 59. Kb6 {[%emt 0:00:02]} Kd3 {[%emt 0:00:00]} 60. Kb5 {[%emt 0:02:56]} Kc2 {[%emt 0:00:00]} 61. Rh1 {[%emt 0:00:00]} Kb2 {[%emt 0:00:00]} 62. Rh8 {[%emt 0:00:00]} c4 {[%emt 0:00:00]} 63. Kb4 {[%emt 0:00:00]} Rc2 {[%emt 0:00:00]} 64. Rh3 {[%emt 0:00:00]} c3 {[%emt 0:00:00]} 65. Rg3 {[%emt 0:00:00]} Rc1 {[%emt 0:00:00]} 66. Rh3 {[%emt 0:00:00]} Rc2 {[%emt 0:00:00]} 67. Rg3 {[%emt 0:00:12]} Rc1 {[%emt 0:00:00]} 68. Rh3 {[%emt 0:00:08]} c2 {[%emt 0:00:00]} 69. Rb3+ {[%emt 0:00:08]} Ka2 {[%emt 0:00:00]} 70. Ra3+ {[%emt 0:00:10]} Kb2 {[%emt 0:00:00]} 71. Rb3+ {[%emt 0:00:08]} 1/2-1/2

[Event "VIII Lorca Open-A 2019"]
[Site "Lorca"]
[Date "2019.12.28"]
[Round "5.10"]
[White "Manu David Suthandram R"]
[Black "Sosa, Tomas"]
[Result "1/2-1/2"]
[ECO "C50"]
[WhiteElo "2369"]
[BlackElo "2520"]
[Annotator "ChessBase"]
[PlyCount "41"]
[EventDate "2019.12.26"]
[EventType "swiss"]
[EventCountry "ESP"]
[SourceTitle "playchess.com"]
[Source "ChessBase"]
[SourceQuality "1"]
[TimeControl "5400+30"]

1. e4 {[%emt 0:03:12]} e5 {[%emt 0:00:23]} 2. Nf3 {[%emt 0:00:07]} Nc6 {[%emt 0:00:09]} 3. Bc4 {[%emt 0:00:05]} Nf6 {[%emt 0:00:16]} 4. O-O {[%emt 0:00:05]} Bc5 {[%emt 0:05:50]} 5. d4 {[%emt 0:00:06]} Bxd4 {[%emt 0:03:54]} 6. Nxd4 {[%emt 0:00:07]} Nxd4 {[%emt 0:00:04]} 7. f4 {[%emt 0:00:07]} d6 {[%emt 0:00:10]} 8. fxe5 {[%emt 0:00:05]} dxe5 {[%emt 0:00:04]} 9. Bg5 {[%emt 0:00:06]} Be6 {[%emt 0:01:52]} 10. Na3 {[%emt 0:00:05]} Qe7 {[%emt 0:03:51]} 11. c3 {[%emt 0:00:21]} Bxc4 {[%emt 0:00:27]} 12. Bxf6 {[%emt 0:00:14]} gxf6 {[%emt 0:01:11]} 13. Nxc4 {[%emt 0:00:05]} Ne6 {[%emt 0:00:33]} 14. Kh1 {[%emt 0:03:21]} Qc5 {[%emt 0:10:05]} 15. Qb3 {[%emt 0:06:57]} O-O-O {[%emt 0:02:13]} 16. Rxf6 {[%emt 0:06:18]} Nf4 {[%emt 0:13:58]} 17. Rf1 {[%emt 0:00:14]} Rhg8 {[%emt 0:02:52]} 18. Nxe5 {[%emt 0:18:20]} Rxg2 {[%emt 0:15:08]} 19. Qxf7 {[%emt 0:06:42]} Qf2 {[%emt 0:21:38]} 20. Qe6+ {[%emt 0:01:02]} Nxe6 {[%emt 0:00:02]} 21. R6xf2 {[%emt 0:02:56]} 1/2-1/2

[Event "VIII Lorca Open-A 2019"]
[Site "Lorca"]
[Date "2019.12.28"]
[Round "5.11"]
[White "Hernandez Leon, Alberto"]
[Black "Klekowski, Maciej"]
[Result "0-1"]
[ECO "A80"]
[WhiteElo "2277"]
[BlackElo "2514"]
[Annotator "ChessBase"]
[PlyCount "84"]
[EventDate "2019.12.26"]
[EventType "swiss"]
[EventCountry "ESP"]
[SourceTitle "playchess.com"]
[Source "ChessBase"]
[SourceQuality "1"]
[TimeControl "5400+30"]

1. d4 {[%emt 1:30:30]} f5 {[%emt 1:30:30]} 2. Nf3 {[%emt 0:00:30]} Nf6 {[%emt 0:00:30]} 3. Bf4 {[%emt 0:00:30]} g6 {[%emt 0:00:30]} 4. e3 {[%emt 0:00:30]} Bg7 {[%emt 0:00:30]} 5. Bc4 {[%emt 0:00:30]} e6 {[%emt 0:00:30]} 6. h3 {[%emt 0:00:30]} d6 {[%emt 0:00:30]} 7. Nc3 {[%emt 0:00:30]} Qe7 {[%emt 0:00:30]} 8. Qe2 {[%emt 0:00:30]} Nc6 {[%emt 0:00:30]} 9. O-O {[%emt 0:00:30]} O-O {[%emt 0:00:30]} 10. Rfe1 {[%emt 0:00:30]} Ne4 {[%emt 0:00:30]} 11. Bh2 {[%emt 0:00:30]} Nxc3 {[%emt 0:00:30]} 12. bxc3 {[%emt 0:00:30]} Na5 {[%emt 0:00:30]} 13. Bb3 {[%emt 0:00:30]} Kh8 {[%emt 0:00:30]} 14. e4 {[%emt 0:00:30]} f4 {[%emt 0:00:30]} 15. e5 {[%emt 0:00:30]} d5 {[%emt 0:00:30]} 16. c4 {[%emt 0:00:30]} c6 {[%emt 0:00:30]} 17. Qd2 {[%emt 0:00:30]} Nxb3 {[%emt 0:00:30]} 18. cxb3 {[%emt 0:00:30]} g5 {[%emt 0:00:30]} 19. a3 {[%emt 0:00:30]} h6 {[%emt 0:00:30]} 20. Qb4 {[%emt 0:00:30]} Qe8 {[%emt 0:00:30]} 21. cxd5 {[%emt 0:00:30]} cxd5 {[%emt 0:00:30]} 22. Rac1 {[%emt 0:00:30]} Rf7 {[%emt 0:00:30]} 23. Qc3 {[%emt 0:00:30]} Bf8 {[%emt 0:00:30]} 24. a4 {[%emt 0:00:30]} a5 {[%emt 0:00:30]} 25. Qd3 {[%emt 0:00:30]} Kg7 {[%emt 0:00:30]} 26. Rc2 {[%emt 0:00:30]} b6 {[%emt 0:00:30]} 27. Rec1 {[%emt 0:00:30]} Ba6 {[%emt 0:00:30]} 28. Qd1 {[%emt 0:00:30]} Ba3 {[%emt 0:00:30]} 29. Ra1 {[%emt 0:00:30]} Bb4 {[%emt 0:00:30]} 30. h4 {[%emt 0:00:30]} Qe7 {[%emt 0:00:30]} 31. Rc6 {[%emt 0:00:30]} g4 {[%emt 0:00:30]} 32. Ne1 {[%emt 0:00:30]} h5 {[%emt 0:00:30]} 33. Nd3 {[%emt 0:00:30]} Raf8 {[%emt 0:00:30]} 34. Rxb6 {[%emt 0:00:30]} g3 {[%emt 0:00:30]} 35. Rxa6 {[%emt 0:00:30]} Qxh4 {[%emt 0:00:30]} 36. Rxe6 {[%emt 0:00:30]} Qxh2+ {[%emt 0:00:30]} 37. Kf1 f3 {[%emt 0:00:30]} 38. gxf3 {[%emt 0:01:00]} Qh1+ {[%emt 0:00:30]} 39. Ke2 {[%emt 0:00:30]} Qxf3+ {[%emt 0:00:30]} 40. Kf1 {[%emt 0:00:30]} Qh1+ {[%emt 0:00:30]} 41. Ke2 {[%emt 0:00:30]} Rxf2+ {[%emt 0:00:30]} 42. Nxf2 {[%emt 0:00:30]} Rxf2+ {[%emt 0:00:30]} 0-1

[Event "VIII Lorca Open-A 2019"]
[Site "Lorca"]
[Date "2019.12.28"]
[Round "5.12"]
[White "Holm, Kristian Stuvik"]
[Black "Garcia Romero, Benjamin Abel"]
[Result "1/2-1/2"]
[ECO "D94"]
[WhiteElo "2489"]
[BlackElo "2231"]
[Annotator "ChessBase"]
[PlyCount "110"]
[EventDate "2019.12.26"]
[EventType "swiss"]
[EventCountry "ESP"]
[SourceTitle "playchess.com"]
[Source "ChessBase"]
[SourceQuality "1"]
[TimeControl "5400+30"]

1. d4 {[%emt 0:00:00]} d5 {[%emt 0:02:43]} 2. c4 {[%emt 0:00:00]} c6 {[%emt 0:00:06]} 3. Nc3 {[%emt 0:00:00]} Nf6 {[%emt 0:00:17]} 4. e3 {[%emt 0:00:03]} a6 {[%emt 0:00:28]} 5. Nf3 {[%emt 0:01:08]} g6 {[%emt 0:03:41]} 6. Be2 {[%emt 0:02:12]} Bg7 {[%emt 0:00:32]} 7. O-O {[%emt 0:01:00]} O-O {[%emt 0:00:16]} 8. b3 {[%emt 0:05:15]} Re8 {[%emt 0:06:17]} 9. h3 {[%emt 0:03:38]} e6 {[%emt 0:02:12]} 10. Qc2 {[%emt 0:10:00]} Nbd7 {[%emt 0:03:38]} 11. Ba3 {[%emt 0:05:22]} b6 {[%emt 0:05:37]} 12. Rad1 {[%emt 0:02:49]} Bb7 {[%emt 0:02:57]} 13. e4 {[%emt 0:02:33]} Nxe4 {[%emt 0:00:49]} 14. Nxe4 {[%emt 0:00:07]} dxe4 {[%emt 0:00:05]} 15. Qxe4 {[%emt 0:00:07]} Qc7 {[%emt 0:00:43]} 16. c5 {[%emt 0:09:00]} b5 {[%emt 0:08:41]} 17. Bb2 {[%emt 0:04:33]} Nxc5 {[%emt 0:04:51]} 18. dxc5 {[%emt 0:01:53]} Bxb2 {[%emt 0:00:08]} 19. Rd6 {[%emt 0:00:41]} Rad8 {[%emt 0:01:20]} 20. Rfd1 {[%emt 0:00:43]} Bf6 {[%emt 0:01:12]} 21. Qf4 {[%emt 0:06:49]} Be7 {[%emt 0:06:30]} 22. Rxd8 {[%emt 0:01:08]} Bxd8 {[%emt 0:01:46]} 23. Qxc7 {[%emt 0:00:09]} Bxc7 {[%emt 0:00:02]} 24. Rd7 {[%emt 0:00:07]} Rc8 {[%emt 0:00:06]} 25. Ng5 {[%emt 0:00:05]} Bf4 {[%emt 0:01:01]} 26. Rxf7 {[%emt 0:04:07]} Bxg5 {[%emt 0:01:22]} 27. Rxb7 {[%emt 0:00:05]} Rd8 {[%emt 0:09:40]} 28. Bg4 {[%emt 0:12:09]} Kf8 {[%emt 0:05:17]} 29. Rb6 {[%emt 0:02:59]} h5 {[%emt 0:02:30]} 30. Bf3 {[%emt 0:03:38]} Be7 {[%emt 0:10:08]} 31. Rxc6 {[%emt 0:00:28]} b4 {[%emt 0:00:41]} 32. g4 {[%emt 0:09:17]} hxg4 {[%emt 0:02:26]} 33. Bxg4 {[%emt 0:00:12]} Rd5 {[%emt 0:02:07]} 34. Rc8+ {[%emt 0:04:33]} Kf7 {[%emt 0:00:59]} 35. c6 {[%emt 0:00:03]} Rc5 {[%emt 0:00:29]} 36. Be2 {[%emt 0:00:10]} a5 {[%emt 0:01:56]} 37. Bc4 {[%emt 0:00:56]} Bd6 {[%emt 0:01:40]} 38. Kg2 {[%emt 0:00:41]} a4 {[%emt 0:04:30]} 39. Kf3 {[%emt 0:01:41]} axb3 {[%emt 0:03:17]} 40. axb3 {[%emt 0:00:35]} Ke7 {[%emt 0:00:44]} 41. Ke4 {[%emt 0:00:30]} Rh5 {[%emt 0:01:25]} 42. Rg8 {[%emt 0:03:32]} Rh4+ {[%emt 0:03:02]} 43. Ke3 {[%emt 0:00:21]} Rxh3+ {[%emt 0:00:11]} 44. Ke2 {[%emt 0:00:05]} Rh5 {[%emt 0:02:11]} 45. Rxg6 {[%emt 0:02:43]} Re5+ {[%emt 0:00:21]} 46. Kd3 {[%emt 0:00:05]} Bc7 {[%emt 0:00:07]} 47. Ba6 {[%emt 0:01:48]} Kd6 {[%emt 0:00:18]} 48. Bb7 {[%emt 0:00:11]} Kc5 {[%emt 0:00:14]} 49. f3 {[%emt 0:01:20]} Rd5+ {[%emt 0:00:32]} 50. Kc2 {[%emt 0:00:15]} Rf5 {[%emt 0:00:39]} 51. Rg7 {[%emt 0:00:11]} Kb6 {[%emt 0:00:10]} 52. Rg4 {[%emt 0:00:09]} Kb5 {[%emt 0:01:07]} 53. Rg7 {[%emt 0:00:57]} Kb6 {[%emt 0:00:05]} 54. Rg4 {[%emt 0:01:20]} Kb5 {[%emt 0:00:05]} 55. f4 {[%emt 0:00:04]} Rxf4 {[%emt 0:00:29]} 1/2-1/2

[Event "VIII Lorca Open-A 2019"]
[Site "Lorca"]
[Date "2019.12.28"]
[Round "5.13"]
[White "Gascon Del Nogal, Jose Rafael"]
[Black "Espineira Gonzalez, Diego"]
[Result "1-0"]
[ECO "D37"]
[WhiteElo "2475"]
[BlackElo "2331"]
[Annotator "ChessBase"]
[PlyCount "43"]
[EventDate "2019.12.26"]
[EventType "swiss"]
[EventCountry "ESP"]
[SourceTitle "playchess.com"]
[Source "ChessBase"]
[SourceQuality "1"]
[TimeControl "5400+30"]

1. e3 {[%emt 0:04:33]} d5 {[%emt 0:00:22]} 2. Nf3 {[%emt 0:00:18]} Nf6 {[%emt 0:00:17]} 3. c4 {[%emt 0:00:06]} e6 {[%emt 0:00:23]} 4. d4 {[%emt 0:00:05]} Nbd7 {[%emt 0:01:15]} 5. Nc3 {[%emt 0:00:34]} Be7 {[%emt 0:00:17]} 6. Qc2 {[%emt 0:10:30]} O-O {[%emt 0:01:25]} 7. cxd5 {[%emt 0:01:38]} exd5 {[%emt 0:00:48]} 8. g4 {[%emt 0:07:27]} c6 {[%emt 0:03:19]} 9. g5 {[%emt 0:00:52]} Nh5 {[%emt 0:00:50]} 10. Bd3 {[%emt 0:09:06]} g6 {[%emt 0:02:25]} 11. Bd2 {[%emt 0:00:45]} Re8 {[%emt 0:04:25]} 12. O-O-O {[%emt 0:00:29]} Nf8 {[%emt 0:00:31]} 13. Ne2 {[%emt 0:01:07]} Ne6 {[%emt 0:05:56]} 14. Ng3 {[%emt 0:01:02]} Neg7 {[%emt 0:05:10]} 15. Nxh5 {[%emt 0:00:05]} Nxh5 {[%emt 0:00:10]} 16. Ne5 {[%emt 0:00:04]} Bxg5 {[%emt 0:04:46]} 17. Rdg1 {[%emt 0:03:16]} Qe7 {[%emt 0:08:41]} 18. f4 {[%emt 0:04:10]} Bf6 {[%emt 0:02:03]} 19. f5 {[%emt 0:08:34]} g5 {[%emt 0:14:58]} 20. h4 {[%emt 0:00:32]} g4 {[%emt 0:00:23]} 21. Rxg4+ {[%emt 0:00:34]} Kh8 {[%emt 0:00:10]} 22. Bb4 {[%emt 0:45:13]} 1-0

[Event "VIII Lorca Open-A 2019"]
[Site "Lorca"]
[Date "2019.12.28"]
[Round "5.13"]
[White "Gascon Del Nogal, Jose Rafael"]
[Black "Espineira Gonzalez, Diego"]
[Result "*"]
[ECO "B90"]
[WhiteElo "2475"]
[BlackElo "2331"]
[Annotator "ChessBase"]
[PlyCount "36"]
[EventDate "2019.12.26"]
[EventType "swiss"]
[EventCountry "ESP"]
[SourceTitle "playchess.com"]
[Source "ChessBase"]
[SourceQuality "1"]
[TimeControl "5400+30"]

1. e4 {[%emt 1:30:30]} c5 {[%emt 1:30:30]} 2. Nf3 {[%emt 0:00:30]} d6 {[%emt 0:00:30]} 3. d4 {[%emt 0:00:30]} cxd4 {[%emt 0:00:30]} 4. Nxd4 {[%emt 0:00:30]} Nf6 {[%emt 0:00:30]} 5. Nc3 {[%emt 0:00:30]} a6 {[%emt 0:00:30]} 6. f3 {[%emt 0:00:30]} e5 {[%emt 0:00:30]} 7. Nb3 {[%emt 0:00:30]} Be6 {[%emt 0:00:30]} 8. Be3 {[%emt 0:00:30]} Be7 {[%emt 0:00:30]} 9. Qd2 {[%emt 0:00:30]} Nbd7 {[%emt 0:00:30]} 10. O-O-O {[%emt 0:00:30]} O-O {[%emt 0:00:30]} 11. g4 {[%emt 0:00:30]} b5 {[%emt 0:00:30]} 12. g5 {[%emt 0:00:30]} Nh5 {[%emt 0:00:30]} 13. Kb1 {[%emt 0:00:30]} Nb6 {[%emt 0:00:30]} 14. Na5 {[%emt 0:00:30]} Qc7 {[%emt 0:00:30]} 15. Nd5 {[%emt 0:00:30]} Nxd5 {[%emt 0:00:30]} 16. exd5 {[%emt 0:00:30]} Bf5 {[%emt 0:00:30]} 17. Rc1 {[%emt 0:00:30]} f6 {[%emt 0:00:30]} 18. gxf6 {[%emt 0:00:30]} Bxf6 {[%emt 0:00:30]} *

[Event "VIII Lorca Open-A 2019"]
[Site "Lorca"]
[Date "2019.12.28"]
[Round "5.14"]
[White "Alonso Garcia, Aaron"]
[Black "Raja Harshit"]
[Result "*"]
[ECO "B90"]
[WhiteElo "2258"]
[BlackElo "2447"]
[Annotator "NA RC"]
[PlyCount "61"]
[EventDate "2019.12.26"]
[EventType "swiss"]
[EventCountry "ESP"]
[SourceTitle "playchess.com"]
[Source "ChessBase"]
[SourceQuality "1"]
[TimeControl "5400+30"]

1. e4 {[%emt 1:30:30]} c5 {[%emt 1:30:30]} 2. Nf3 {[%emt 0:00:30]} d6 {[%emt 0:00:30]} 3. d4 {[%emt 0:00:30]} cxd4 {[%emt 0:00:30]} 4. Nxd4 {[%emt 0:00:30]} Nf6 {[%emt 0:00:30]} 5. Nc3 {[%emt 0:00:30]} a6 {[%emt 0:00:30]} 6. f3 {[%emt 0:00:30]} e5 {[%emt 0:00:30]} 7. Nb3 {[%emt 0:00:30]} Be6 {[%emt 0:00:30]} 8. Be3 {[%emt 0:00:30]} Be7 {[%emt 0:00:30]} 9. Qd2 {[%emt 0:00:30]} Nbd7 {[%emt 0:00:30]} 10. O-O-O {[%emt 0:00:30]} O-O {[%emt 0:00:30]} 11. g4 {[%emt 0:00:30]} b5 {[%emt 0:00:30]} 12. g5 {[%emt 0:00:30]} Nh5 {[%emt 0:00:30]} 13. Kb1 {[%emt 0:00:30]} Nb6 {[%emt 0:00:30]} 14. Na5 {[%emt 0:00:30]} Qc7 {[%emt 0:00:30]} 15. Nd5 {[%emt 0:00:30]} Nxd5 {[%emt 0:00:30]} 16. exd5 {[%emt 0:00:30]} Bf5 {[%emt 0:00:30]} 17. Rc1 {[%emt 0:00:30]} f6 {[%emt 0:00:30]} 18. gxf6 {[%emt 0:00:30]} Bxf6 {[%emt 0:00:30]} 19. Ka1 {[%emt 0:00:30]} b4 {[%emt 0:00:30]} 20. Nc6 {[%emt 0:00:30]} a5 {[%emt 0:00:30]} 21. Bd3 {[%emt 0:00:30]} Qd7 {[%emt 0:00:30]} 22. Rhg1 {[%emt 0:00:30]} Bxd3 {[%emt 0:00:30]} 23. Qxd3 {[%emt 0:00:30]} Nf4 {[%emt 0:00:30]} 24. Bxf4 {[%emt 0:00:30]} exf4 {[%emt 0:00:30]} 25. Kb1 {[%emt 0:00:30]} Qh3 {[%emt 0:00:30]} 26. Rce1 {[%emt 0:00:30]} Rfe8 {[%emt 0:00:30]} 27. Re2 {[%emt 0:00:30]} Kf8 {[%emt 0:00:30]} 28. Rge1 {[%emt 0:00:30]} Bh4 {[%emt 0:00:30]} 29. Rxe8+ {[%emt 0:00:30]} Rxe8 {[%emt 0:00:30]} 30. Rxe8+ {[%emt 0:00:30]} Kxe8 {[%emt 0:00:30]} 31. a3 {[%emt 0:00:30]} *

[Event "VIII Lorca Open-A 2019"]
[Site "Lorca"]
[Date "2019.12.28"]
[Round "5.15"]
[White "Plazuelo Pascual, Juan"]
[Black "Godbole, Atharva"]
[Result "1/2-1/2"]
[ECO "D85"]
[WhiteElo "2433"]
[BlackElo "2148"]
[Annotator "NA"]
[PlyCount "30"]
[EventDate "2019.12.26"]
[EventType "swiss"]
[EventCountry "ESP"]
[SourceTitle "playchess.com"]
[Source "ChessBase"]
[SourceQuality "1"]
[TimeControl "5400+30"]

1. d4 {[%emt 1:30:30]} Nf6 {[%emt 1:30:30]} 2. c4 {[%emt 0:00:30]} g6 {[%emt 0:00:30]} 3. Nc3 {[%emt 0:00:30]} d5 {[%emt 0:00:30]} 4. cxd5 {[%emt 0:00:30]} Nxd5 {[%emt 0:00:30]} 5. Na4 {[%emt 0:00:30]} Bg7 {[%emt 0:00:30]} 6. e4 {[%emt 0:00:30]} Nb6 {[%emt 0:00:30]} 7. Be3 {[%emt 0:00:30]} O-O {[%emt 0:00:30]} 8. Nf3 {[%emt 0:00:30]} Nxa4 {[%emt 0:00:30]} 9. Qxa4 {[%emt 0:00:30]} c5 {[%emt 0:00:30]} 10. Rd1 {[%emt 0:00:30]} Bd7 {[%emt 0:00:30]} 11. Qa3 {[%emt 0:00:30]} cxd4 {[%emt 0:00:30]} 12. Nxd4 {[%emt 0:00:30]} Qc7 {[%emt 0:00:30]} 13. Be2 {[%emt 0:00:30]} a6 {[%emt 0:00:30]} 14. O-O {[%emt 0:00:30]} Nc6 {[%emt 0:00:30]} 15. Nb3 {[%emt 0:00:30]} Rfd8 {[%emt 0:00:30]} 1/2-1/2

[Event "VIII Lorca Open-A 2019"]
[Site "Lorca"]
[Date "2019.12.28"]
[Round "5.15"]
[White "Plazuelo Pascual, Juan"]
[Black "Godbole, Atharva"]
[Result "*"]
[ECO "B06"]
[WhiteElo "2433"]
[BlackElo "2148"]
[Annotator "NA"]
[PlyCount "21"]
[EventDate "2019.12.26"]
[EventType "swiss"]
[EventCountry "ESP"]
[SourceTitle "playchess.com"]
[Source "ChessBase"]
[SourceQuality "1"]
[TimeControl "5400+30"]

1. d4 {[%emt 0:01:45]} d6 {[%emt 0:00:12]} 2. Nf3 {[%emt 0:02:37]} g6 {[%emt 0:00:12]} 3. e4 {[%emt 0:03:09]} Bg7 {[%emt 0:00:09]} 4. h3 {[%emt 0:00:29]} Nd7 {[%emt 0:03:24]} 5. Nc3 {[%emt 0:04:42]} a6 {[%emt 0:01:09]} 6. a4 {[%emt 1:20:18]} b6 {[%emt 0:01:38]} 7. Be2 {[%emt 1:19:50]} e6 {[%emt 0:00:15]} 8. O-O {[%emt 1:16:58]} Bb7 {[%emt 1:27:01]} 9. Be3 {[%emt 0:01:30]} Ne7 {[%emt 0:00:48]} 10. Qd2 {[%emt 0:01:48]} h6 {[%emt 0:00:13]} 11. Nh2 {[%emt 0:02:54]} *